fUSD/lending_fUSD_20260413
["ID","MTS","AMOUNT","RATE_DAILY","PERIOD"]
[420418996,1776091024571,150.0,0.00014434,2]
[420418997,1776091024615,2188.91,0.00014434,2]
[420418998,1776091024639,5000.01,0.00014434,2]
[420418999,1776091024666,1745.37,0.00014434,2]
[420419003,1776091037363,150.0,0.0001463,2]
[420419004,1776091038102,200.0,0.000146,2]
[420419005,1776091070933,-300.0,0.00014704,2]
[420419006,1776091075637,156.13670826,0.00014605,2]
[420419007,1776091082774,300.0,0.00014704,2]
[420419008,1776091089638,161.55,0.00014704,2]
[420419009,1776091091256,-482.0,0.00014705,2]
[420419010,1776091091292,-179.109,0.00014705,2]
[420419011,1776091091319,-300.0,0.00014705,2]
[420419012,1776091091349,-1200.0,0.00014705,2]
[420419013,1776091091377,-300.0,0.00014705,2]
[420419014,1776091091407,-150.0,0.00014705,2]
[420419015,1776091091438,-218.43628935,0.00014706,2]
[420419016,1776091091470,-7170.45471065,0.00014706,2]
[420419017,1776091103407,-8681.30528935,0.00014706,2]
[420419018,1776091123334,-1318.69471065,0.0001499,2]
[420419019,1776091128181,506.0,0.000135,2]
[420419020,1776091138892,-506.0,0.00014915,3]
[420419021,1776091138934,-2081.31528935,0.0001499,2]
[420419022,1776091138981,-7117.791,0.00015119,2]
[420419023,1776091139008,-294.89371065,0.00015119,2]
[420419024,1776091153552,-200.0,0.0001496,2]
[420419025,1776091153583,-16.07228935,0.00015119,2]
[420419026,1776091153612,-5000.0,0.00015164,2]
[420419027,1776091153637,-523.08678583,0.00015209,2]
[420419028,1776091153662,-1017.67500225,0.00015209,2]
[420419029,1776091153694,-3243.16592257,0.00015227,2]
[420419030,1776091170665,-3657.67753276,0.00015227,2]
[420419031,1776091170688,-3689.29,0.00015236,2]
[420419032,1776091170725,-300.0,0.00015299,2]
[420419033,1776091170750,-2353.03246724,0.000153,2]
[420419034,1776091196530,-200.0,0.00015,2]
[420419035,1776091196570,-9800.0,0.000153,2]
[420419036,1776091206123,184.43,0.00014465,3]
[420419037,1776091209770,-10000.0,0.000153,2]
[420419038,1776091274021,-300.0,0.00015225,2]
[420419039,1776091274079,-1456.4127,0.00015226,2]
[420419040,1776091274169,-20.1273,0.00015226,2]
[420419041,1776091291755,200.0,0.00014537,7]
[420419042,1776091294057,200.0,0.00014537,7]
[420419043,1776091294591,200.0,0.00015302,30]
[420419044,1776091310115,-1000.0,0.00015226,2]
[420419045,1776091312973,-1000.0,0.00015226,2]
[420419046,1776091313104,-1000.0,0.00015226,2]
[420419047,1776091313210,-1000.0,0.00015226,2]
[420419048,1776091313324,-1000.0,0.00015226,2]
[420419049,1776091313454,-1000.0,0.00015226,2]
[420419050,1776091313702,-1000.0,0.00015226,2]
[420419051,1776091314050,-1000.0,0.00015226,2]
[420419052,1776091314544,-1000.0,0.00015226,2]
[420419053,1776091314849,-1000.0,0.00015226,2]
[420419054,1776091315184,-1000.0,0.00015226,2]
[420419055,1776091315669,-1000.0,0.00015226,2]
[420419056,1776091315957,-1000.0,0.00015226,2]
[420419057,1776091316243,-1000.0,0.00015226,2]
[420419058,1776091316697,-1000.0,0.00015226,2]
[420419059,1776091316968,-1000.0,0.00015226,2]
[420419060,1776091317382,-1000.0,0.00015226,2]
[420419061,1776091317711,-1000.0,0.00015226,2]
[420419062,1776091318084,-1000.0,0.00015226,2]
[420419063,1776091318467,-1000.0,0.00015226,2]
[420419064,1776091318837,-1000.0,0.00015226,2]
[420419065,1776091319185,-1000.0,0.00015226,2]
[420419066,1776091319600,-1000.0,0.00015226,2]
[420419067,1776091319944,-1000.0,0.00015226,2]
[420419068,1776091320418,-462.91,0.00015154,2]
[420419069,1776091320451,-537.09,0.00015226,2]
[420419070,1776091320741,-1000.0,0.00015226,2]
[420419071,1776091321101,-1000.0,0.00015226,2]
[420419072,1776091321482,-300.0,0.00015225,2]
[420419073,1776091321512,-700.0,0.00015226,2]
[420419074,1776091321975,-300.0,0.00015225,2]
[420419075,1776091322004,-700.0,0.00015226,2]
[420419076,1776091322456,-300.0,0.00015225,2]
[420419077,1776091322491,-700.0,0.00015226,2]
[420419078,1776091322790,-1000.0,0.00015226,2]
[420419079,1776091325416,-1000.0,0.00015226,2]
[420419080,1776091327361,-1000.0,0.00015226,2]
[420419081,1776091327499,-1000.0,0.00015226,2]
[420419082,1776091328061,-1000.0,0.00015226,2]
[420419083,1776091328210,-1000.0,0.00015226,2]
[420419084,1776091328476,-1000.0,0.00015226,2]
[420419085,1776091328685,-1000.0,0.00015226,2]
[420419086,1776091328817,-1000.0,0.00015226,2]
[420419087,1776091329381,-1000.0,0.00015226,2]
[420419088,1776091331124,-1000.0,0.00015226,2]
[420419089,1776091331686,-1000.0,0.00015226,2]
[420419090,1776091331730,1500.0,0.00014455,2]
[420419091,1776091332095,-1000.0,0.00015226,2]
[420419092,1776091332840,-1000.0,0.00015226,2]
[420419093,1776091333231,-1000.0,0.00015226,2]
[420419094,1776091333596,-1000.0,0.00015226,2]
[420419095,1776091337422,-1000.0,0.00015226,2]
[420419096,1776091338083,-1000.0,0.00015226,2]
[420419097,1776091338550,-1000.0,0.00015226,2]
[420419098,1776091340709,-1000.0,0.00015226,2]
[420419099,1776091342583,-1000.0,0.00015226,2]
[420419100,1776091382560,-300.0,0.00015225,2]
[420419101,1776091383152,-158.50698868,0.00015199,2]
[420419102,1776091388719,-1994.62346514,0.00015226,2]
[420419103,1776091388769,-5000.01,0.00015226,2]
[420419104,1776091388906,-5000.01,0.00015226,2]
[420419105,1776091389040,-5000.01,0.00015226,2]
[420419106,1776091389217,-158.50698866,0.00015213,2]
[420419107,1776091389278,-4682.99602268,0.00015226,2]
[420419108,1776091389337,-5000.01,0.00015226,2]
[420419109,1776091416746,-158.50698866,0.00015226,2]
[420419110,1776091416779,-841.49301134,0.00015226,2]
[420419111,1776091417786,-1000.0,0.00015226,2]
[420419112,1776091418765,-1000.0,0.00015226,2]
[420419113,1776091421615,-1000.0,0.00015226,2]
[420419114,1776091422838,-1000.0,0.00015226,2]
[420419115,1776091423905,-1000.0,0.00015226,2]
[420419116,1776091424904,-1000.0,0.00015226,2]
[420419117,1776091426061,-1000.0,0.00015226,2]
[420419118,1776091428038,-671.77860084,0.00015226,2]
[420419119,1776091428076,-328.22139916,0.00015226,2]
[420419120,1776091433920,244.76,0.00014467,2]
[420419121,1776091435989,4755.25,0.00015126,2]
[420419122,1776091439493,-1409.13421419,0.00015126,2]
[420419123,1776091483826,1596.21,0.0001375,2]
[420419124,1776091490218,506.0,0.000135,2]
[420419125,1776091498843,-506.0,0.00014978,3]
[420419126,1776091498884,-150.0,0.0001505,2]
[420419127,1776091498914,-324.78540734,0.000151,3]
[420419128,1776091498949,-602.37125652,0.000151,3]
[420419129,1776091498981,-659.21039883,0.000151,3]
[420419130,1776091499015,-677.90650377,0.000151,3]
[420419131,1776091499055,-2181.74157162,0.00015126,2]
[420419132,1776091499098,-500.0,0.00015225,2]
[420419133,1776091499132,-191.10553825,0.00015225,2]
[420419134,1776091499170,-500.0,0.00015225,2]
[420419135,1776091499224,-500.0,0.00015225,2]
[420419136,1776091499259,-250.0,0.00015225,2]
[420419137,1776091499292,-500.0,0.00015225,2]
[420419138,1776091499321,-500.0,0.00015225,2]
[420419139,1776091499355,-500.0,0.00015225,2]
[420419140,1776091499379,-402.46164701,0.00015225,2]
[420419141,1776091499411,-500.0,0.00015225,2]
[420419142,1776091499435,-157.22269792,0.00015225,2]
[420419143,1776091499466,-397.19497874,0.00015225,2]
[420419144,1776091499512,464.16929747,0.0001375,2]
[420419145,1776091511217,-333.94070253,0.0001375,2]
[420419146,1776091511261,-1200.0,0.00015099,2]
[420419147,1776091511316,-159.0,0.00015125,2]
[420419148,1776091511370,-6239.16786251,0.00015127,2]
[420419149,1776091511393,-300.0,0.00015224,2]
[420419150,1776091511433,-102.80502126,0.00015225,2]
[420419151,1776091511469,-500.0,0.00015225,2]
[420419152,1776091511493,-500.0,0.00015225,2]
[420419153,1776091511536,-500.0,0.00015225,2]
[420419154,1776091511580,-165.0864137,0.00015225,2]
[420419155,1776091520200,-300.0,0.00015224,2]
[420419156,1776091520231,-334.9135863,0.00015225,2]
[420419157,1776091520263,-500.0,0.00015225,2]
[420419158,1776091520295,-500.0,0.00015225,2]
[420419159,1776091520319,-427.2814509,0.00015225,2]
[420419160,1776091520356,-500.0,0.00015225,2]
[420419161,1776091520385,-500.0,0.00015225,2]
[420419162,1776091520412,-500.0,0.00015225,2]
[420419163,1776091520443,-500.0,0.00015225,2]
[420419164,1776091520472,-500.0,0.00015225,2]
[420419165,1776091520500,-500.0,0.00015225,2]
[420419166,1776091520532,-500.0,0.00015225,2]
[420419167,1776091520559,-500.0,0.00015225,2]
[420419168,1776091520588,-500.0,0.00015225,2]
[420419169,1776091520617,-500.0,0.00015225,2]
[420419170,1776091520662,-500.0,0.00015225,2]
[420419171,1776091520700,-500.0,0.00015225,2]
[420419172,1776091520732,-500.0,0.00015225,2]
[420419173,1776091520785,-500.0,0.00015225,2]
[420419174,1776091520823,-500.0,0.00015225,2]
[420419175,1776091520867,-185.63198835,0.00015225,2]
[420419176,1776091520908,-252.17297445,0.00015225,2]
[420419177,1776091531698,-247.82702555,0.00015225,2]
[420419178,1776091531750,-500.0,0.00015225,2]
[420419179,1776091531793,-500.0,0.00015225,2]
[420419180,1776091531836,-500.0,0.00015225,2]
[420419181,1776091531875,-500.0,0.00015225,2]
[420419182,1776091531901,-500.0,0.00015225,2]
[420419183,1776091531928,-500.0,0.00015225,2]
[420419184,1776091531954,-500.0,0.00015225,2]
[420419185,1776091531981,-500.0,0.00015225,2]
[420419186,1776091532010,-500.0,0.00015225,2]
[420419187,1776091532035,-500.0,0.00015225,2]
[420419188,1776091532067,-500.0,0.00015225,2]
[420419189,1776091532110,-500.0,0.00015225,2]
[420419190,1776091532152,-500.0,0.00015225,2]
[420419191,1776091532181,-500.0,0.00015225,2]
[420419192,1776091532211,-500.0,0.00015225,2]
[420419193,1776091532242,-500.0,0.00015225,2]
[420419194,1776091532285,-239.69393869,0.00015225,2]
[420419195,1776091532325,-315.13459427,0.00015225,2]
[420419196,1776091532358,-500.0,0.00015225,2]
[420419197,1776091532392,-500.0,0.00015225,2]
[420419198,1776091532425,-197.34444149,0.00015225,2]
[420419199,1776091544341,-500.0,0.00015225,2]
[420419200,1776091544370,-302.65555851,0.00015225,2]
[420419201,1776091544398,-374.78755613,0.00015225,2]
[420419202,1776091544434,-500.0,0.00015225,2]
[420419203,1776091544460,-404.29453031,0.00015225,2]
[420419204,1776091544493,-500.0,0.00015225,2]
[420419205,1776091544524,-541.9785126,0.00015225,2]
[420419206,1776091544567,-541.9785126,0.00015225,2]
[420419207,1776091544604,-541.9785126,0.00015225,2]
[420419208,1776091544644,-541.9785126,0.00015225,2]
[420419209,1776091544688,-541.9785126,0.00015225,2]
[420419210,1776091544735,-541.9785126,0.00015225,2]
[420419211,1776091544775,-541.9785126,0.00015225,2]
[420419212,1776091544817,-541.9785126,0.00015225,2]
[420419213,1776091544851,-541.9785126,0.00015225,2]
[420419214,1776091544894,-541.9785126,0.00015225,2]
[420419215,1776091544936,-541.9785126,0.00015225,2]
[420419216,1776091544971,-541.9785126,0.00015225,2]
[420419217,1776091545030,-541.9785126,0.00015225,2]
[420419218,1776091545072,-372.54169125,0.00015225,2]
[420419219,1776091593185,-166.66,0.00014836,2]
[420419220,1776091593215,-9833.34,0.00015126,2]
[420419221,1776091608844,250.0,0.00013,2]
[420419222,1776091610113,-300.0,0.00015,2]
[420419223,1776091610143,-9700.0,0.00015126,2]
[420419224,1776091611156,-2181.74157162,0.00015126,2]
[420419225,1776091617158,-5000.01,0.00015126,2]
[420419226,1776091620888,-10000.0,0.00015126,2]
[420419227,1776091630342,1500.0,0.000147,5]
[420419228,1776091632435,3000.0,0.000148,5]
[420419229,1776091634586,2960.3,0.00014377,2]
[420419230,1776091634751,2539.71,0.000149,5]
[420419231,1776091635830,-2060.29,0.000149,5]
[420419232,1776091635903,-617.0,0.00015126,3]
[420419233,1776091635959,-154.0,0.00015126,3]
[420419234,1776091636006,-7168.71,0.00015126,2]
[420419245,1776091831880,-500.0,0.00014317,2]
[420419247,1776091831939,-30.56843119,0.00014384,2]
[420419248,1776091831957,-119.43156881,0.00014384,2]
[420419249,1776091831976,-313.96038318,0.000151,3]
[420419250,1776091832003,-56.21909553,0.000151,3]
[420419251,1776091832013,-354.69042557,0.000151,3]
[420419252,1776091832033,-528.34,0.00015108,2]
[420419253,1776091832043,-300.0,0.00015124,2]
[420419254,1776091832052,-300.0,0.00015124,2]
[420419255,1776091832071,-300.0,0.00015124,2]
[420419256,1776091832081,-1200.0,0.00015124,2]
[420419257,1776091832092,-300.0,0.00015125,2]
[420419258,1776091832115,-300.0,0.00015125,2]
[420419259,1776091832126,-1200.0,0.00015125,2]
[420419260,1776091832137,-264.0,0.00015126,3]
[420419261,1776091832156,-586.0,0.00015126,3]
[420419262,1776091832171,-154.0,0.00015126,3]
[420419263,1776091832192,-54853.33402838,0.00015126,2]
[420419264,1776091832202,-2500.0,0.00015126,2]
[420419265,1776091832213,-958.25765682,0.00015127,2]
[420419266,1776091832232,-313.36,0.00015151,2]
[420419267,1776091832244,-150.0,0.00015169,2]
[420419268,1776091832253,-150.208644,0.0001517,2]
[420419269,1776091832265,-368.80780816,0.00015216,2]
[420419270,1776091832279,-500.0,0.00015225,2]
[420419271,1776091832299,-198.04209157,0.00015225,2]
[420419272,1776091832315,-319.9387642,0.00015225,2]
[420419273,1776091832335,-319.9387642,0.00015225,2]
[420419274,1776091832344,-500.0,0.00015225,2]
[420419275,1776091832368,-500.0,0.00015225,2]
[420419276,1776091832378,-500.0,0.00015225,2]
[420419277,1776091832390,-500.0,0.00015225,2]
[420419278,1776091832407,-500.0,0.00015225,2]
[420419279,1776091832421,-500.0,0.00015225,2]
[420419280,1776091832431,-169.43682135,0.00015225,2]
[420419281,1776091832450,-541.9785126,0.00015225,2]
[420419282,1776091832461,-541.9785126,0.00015225,2]
[420419283,1776091832471,-541.9785126,0.00015225,2]
[420419284,1776091832483,-541.9785126,0.00015225,2]
[420419285,1776091832495,-541.9785126,0.00015225,2]
[420419286,1776091832504,-504.04001672,0.00015225,2]
[420419288,1776091832516,-504.04001672,0.00015225,2]
[420419289,1776091832531,-504.04001672,0.00015225,2]
[420419290,1776091832541,-504.04001672,0.00015225,2]
[420419291,1776091832550,-504.04001672,0.00015225,2]
[420419292,1776091832568,-504.04001672,0.00015225,2]
[420419293,1776091832578,-504.04001672,0.00015225,2]
[420419294,1776091832587,-504.04001672,0.00015225,2]
[420419295,1776091832597,-504.04001672,0.00015225,2]
[420419296,1776091832609,-504.04001672,0.00015225,2]
[420419297,1776091832629,-504.04001672,0.00015225,2]
[420419298,1776091832638,-504.04001672,0.00015225,2]
[420419299,1776091832649,-504.04001672,0.00015225,2]
[420419300,1776091832659,-504.04001672,0.00015225,2]
[420419301,1776091832678,-504.04001672,0.00015225,2]
[420419302,1776091832689,-504.04001672,0.00015225,2]
[420419303,1776091832703,-504.04001672,0.00015225,2]
[420419304,1776091832733,-504.04001672,0.00015225,2]
[420419305,1776091832748,-504.04001672,0.00015225,2]
[420419306,1776091832763,-500.0,0.00015225,2]
[420419307,1776091832778,-500.0,0.00015225,2]
[420419308,1776091832792,-500.0,0.00015225,2]
[420419309,1776091832805,-500.0,0.00015225,2]
[420419310,1776091832820,-489.99616556,0.00015225,2]
[420419311,1776091832857,-500.0,0.00015225,2]
[420419312,1776091832867,-500.0,0.00015225,2]
[420419313,1776091832898,-500.0,0.00015225,2]
[420419314,1776091832913,-500.0,0.00015225,2]
[420419315,1776091832946,-500.0,0.00015225,2]
[420419316,1776091832960,-500.0,0.00015225,2]
[420419317,1776091832981,-166.780048,0.00015225,2]
[420419318,1776091832991,-500.0,0.00015225,2]
[420419319,1776091833002,-500.0,0.00015225,2]
[420419320,1776091833025,-500.0,0.00015225,2]
[420419321,1776091833034,-167.78575708,0.00015225,2]
[420419322,1776091833048,-500.0,0.00015225,2]
[420419323,1776091833059,-487.35128929,0.00015225,2]
[420419324,1776091833069,-500.0,0.00015225,2]
[420419325,1776091833080,-325.25349455,0.00015225,2]
[420419326,1776091833095,-150.0,0.00015225,2]
[420419327,1776091833104,-2000.0,0.00015226,2]
[420419328,1776091833115,-3825.69950084,0.00015226,2]
[420419329,1776091833125,-65080.0498078,0.00015226,2]
[420419330,1776091833143,-16640.0062087,0.00015226,2]
[420419331,1776091833155,-18663.82261356,0.00015226,2]
[420419332,1776091833170,-24489.9598126,0.00015226,2]
[420419333,1776091833187,-1191.33537784,0.00015226,2]
[420419334,1776091833199,-897.0,0.00015226,2]
[420419335,1776091833214,-584.79955105,0.00015226,2]
[420419336,1776091833231,-309.88642084,0.00015226,2]
[420419337,1776091833259,-5178.2669529,0.00015226,2]
[420419338,1776091833276,-387.105,0.00015226,2]
[420419339,1776091833289,-1615.14536651,0.00015226,2]
[420419340,1776091833309,-3070.08204455,0.00015226,2]
[420419341,1776091833322,-987.95536,0.00015226,2]
[420419342,1776091833341,-2749.54117754,0.00015226,2]
[420419343,1776091833376,-412.77728069,0.00015226,2]
[420419344,1776091833455,-483.96697237,0.00015226,2]
[420419345,1776091833506,-258.05626243,0.00015226,2]
[420419347,1776091838382,-218.67,0.00014313,2]
[420419348,1776091838392,-218.67,0.00015108,2]
[420419349,1776091838404,-949.01636678,0.00015226,2]
[420419352,1776091840933,-23987.60636241,0.00015226,2]
[420419353,1776091840953,-1807.85877248,0.00015226,2]
[420419357,1776091840990,-1257.68700571,0.00015226,2]
[420419358,1776091841004,-549.06168683,0.00015226,2]
[420419359,1776091841025,-1654.34801022,0.00015226,2]
[420419360,1776091841038,-69022.59168721,0.00015226,2]
[420419596,1776091844104,-0.29505675,0.00015226,2]
[420419597,1776091844157,-2019.91513355,0.00015226,2]
[420419598,1776091844180,-3421.10597051,0.00015226,2]
[420419599,1776091844191,-14162.908,0.00015226,2]
[420419600,1776091844202,-720.83623331,0.00015226,2]
[420419601,1776091844248,-393.51575662,0.00015226,2]
[420419602,1776091844265,-1976.09516634,0.00015226,2]
[420419603,1776091844299,-398.23705892,0.00015226,2]
[420419604,1776091844311,-5055.03940439,0.00015226,2]
[420419605,1776091844361,-1435.87614288,0.00015226,2]
[420419606,1776091844377,-544.2039824,0.00015226,2]
[420419609,1776091845117,506.0,0.000135,2]
[420419619,1776091846107,-560.63689717,0.00014834,2]
[420419620,1776091846133,-506.0,0.00015047,3]
[420419621,1776091846145,-3687.82,0.00015216,2]
[420419622,1776091846156,-3687.82,0.00015216,2]
[420419623,1776091846192,-16922.58528029,0.00015226,2]
[420419624,1776091846205,-359.41977999,0.00015226,2]
[420419625,1776091846227,-813.92601595,0.00015226,2]
[420419626,1776091846252,-966.59,0.00015226,2]
[420419627,1776091846270,-2356.43549536,0.00015226,2]
[420419628,1776091846286,-910.07126,0.00015226,2]
[420419629,1776091846310,-12087.44434569,0.00015226,2]
[420419630,1776091846344,-196381.44530325,0.00015226,2]
[420419631,1776091846364,-314.55,0.00015226,2]
[420419632,1776091846389,-1771.7918838,0.00015226,2]
[420419633,1776091846425,-42615.67484909,0.00015226,2]
[420419634,1776091846439,-1478.68059726,0.00015226,2]
[420419636,1776091846465,-399.48050875,0.00015226,2]
[420419637,1776091846477,-5546.69748989,0.00015226,2]
[420419638,1776091846500,-393.40850334,0.00015226,2]
[420419639,1776091846513,-479.69261835,0.00015226,2]
[420419643,1776091892850,338.0,0.00011756,2]
[420419644,1776091893570,338.0,0.00012722,2]
[420419645,1776091894328,340.6262058,0.00013358,2]
[420419646,1776091929501,557.0,0.0001375,2]
[420419647,1776091936032,154.0,0.0001375,2]
[420419648,1776091940452,150.0,1.25e-06,2]
[420419649,1776091946926,150.0,1.25e-06,2]
[420419650,1776091952602,150.0,1.25e-06,2]
[420419651,1776091958046,150.0,1.25e-06,2]
[420419652,1776092009495,6014.546847,0.0001393,2]
[420419653,1776092027721,150.0,1.25e-06,2]
[420419654,1776092033665,559.0,1.25e-06,2]
[420419655,1776092034321,150.0,1.25e-06,2]
[420419656,1776092039370,559.0,1.25e-06,2]
[420419657,1776092040034,150.0,1.25e-06,2]
[420419658,1776092045840,559.0,1.25e-06,2]
[420419659,1776092046118,150.0,1.25e-06,2]
[420419660,1776092051142,559.0,1.25e-06,2]
[420419661,1776092051892,150.0,1.25e-06,2]
[420419662,1776092057081,559.0,1.25e-06,2]
[420419663,1776092057822,150.0,1.25e-06,2]
[420419664,1776092061877,341.636,0.0001399,2]
[420419665,1776092062810,559.0,1.25e-06,2]
[420419666,1776092063503,150.0,1.25e-06,2]
[420419667,1776092068633,559.0,1.25e-06,2]
[420419668,1776092069220,150.0,1.25e-06,2]
[420419669,1776092074272,559.0,1.25e-06,2]
[420419670,1776092074949,150.0,1.25e-06,2]
[420419671,1776092080590,559.0,1.25e-06,2]
[420419672,1776092081702,150.0,1.25e-06,2]
[420419673,1776092086433,43.75309167,1.25e-06,2]
[420419674,1776092086488,515.24690833,1.25e-06,2]
[420419675,1776092087581,150.0,1.25e-06,2]
[420419676,1776092092145,559.0,1.25e-06,2]
[420419677,1776092093310,150.0,1.25e-06,2]
[420419678,1776092097875,559.0,1.25e-06,2]
[420419679,1776092104388,559.0,1.25e-06,2]
[420419680,1776092109953,74.13238914,1.25e-06,2]
[420419681,1776092110010,484.86761086,1.25e-06,2]
[420419682,1776092116607,559.0,1.25e-06,2]
[420419683,1776092121842,559.0,1.25e-06,2]
[420419684,1776092127963,150.0,0.00013699,2]
[420419685,1776092128273,559.0,1.25e-06,2]
[420419686,1776092142497,163.68762749,0.00013749,30]
[420419687,1776092143306,163.68762749,0.00013749,30]
[420419688,1776092144043,163.68762749,0.00013989,30]
[420419689,1776092144833,163.68762749,0.0001399,30]
[420419690,1776092145578,163.68762749,0.000154,30]
[420419691,1776092152725,254.51168661,0.0001368,2]
[420419692,1776092152774,2566.37929747,0.0001368,2]
[420419693,1776092152814,2566.37929747,0.0001368,2]
[420419694,1776092152901,2566.37929747,0.0001368,2]
[420419695,1776092152971,89.36480398,0.0001368,2]
[420419696,1776092168349,529.0,0.00013746,2]
[420419697,1776092168576,529.0,0.00013746,2]
[420419698,1776092168643,529.0,0.00013746,2]
[420419699,1776092168845,529.0,0.00013746,2]
[420419700,1776092168895,361.01449349,0.00013746,2]
[420419701,1776092203161,506.0,0.000135,2]
[420419702,1776092250098,150.0,0.00013699,2]
[420419703,1776092250893,272.0,0.00013699,2]
[420419704,1776092302402,1638.37929747,0.000119,2]
[420419705,1776092302435,2566.37929747,0.000119,2]
[420419706,1776092312383,23750.32751569,8e-05,2]
[420419708,1776092328662,-350.27776049,0.000119,2]
[420419709,1776092329139,-700.55552098,0.000119,2]
[420419710,1776092329203,-1401.11104196,0.000119,2]
[420419711,1776092329457,-2960.60956271,0.000119,2]
[420419712,1776092329482,-4237.17835337,0.000119,2]
[420419713,1776092329505,-326.0,0.000119,2]
[420419714,1776092343995,-506.0,0.000135,2]
[420419715,1776092350877,405.0,0.000135,2]
[420419716,1776092360371,-5000.0,0.00013599,2]
[420419717,1776092386009,-405.0,0.00013695,3]
[420419718,1776092401111,274.70950223,0.0001,2]
[420419719,1776092401795,313.15110661,0.0001,2]
[420419720,1776092403054,500.0,0.00013695,2]
[420419721,1776092404118,300.0,0.00013973,30]
[420419722,1776092410860,2617.19395141,0.0001305,2]
[420419723,1776092433358,538.87260878,0.00013648,2]
[420419724,1776092445498,48000.0,0.000165,30]
[420419725,1776092445807,171.33331095,0.00013699,30]
[420419726,1776092445849,170.90501259,0.00013562,2]
[420419727,1776092445928,256.35751889,0.0001363,14]
[420419728,1776092453207,2137.9822266,0.00013,15]
[420419729,1776092462926,-251.0,0.00013699,2]
[420419730,1776092463007,-365.0,0.00013699,2]
[420419731,1776092463094,-150.0,0.00013699,2]
[420419732,1776092463170,-195.0,0.00013746,2]
[420419733,1776092463226,-600.0,0.00013747,2]
[420419734,1776092463309,-255.0,0.00013748,2]
[420419735,1776092463367,-300.0,0.00013748,2]
[420419736,1776092463405,-1200.0,0.00013748,2]
[420419737,1776092463443,-300.0,0.00013748,2]
[420419738,1776092463761,-200.0,0.00013699,2]
[420419739,1776092463810,-2806.52,0.00013827,2]
[420419740,1776092463852,-1986.97,0.00013945,2]
[420419741,1776092463988,-13.03,0.00013945,2]
[420419742,1776092464049,-150.0,0.00013973,2]
[420419743,1776092464096,-155.89,0.00014,2]
[420419744,1776092464141,-254.17,0.00014023,2]
[420419745,1776092464182,-3677.52,0.00014066,2]
[420419746,1776092464224,-150.0,0.000142,2]
[420419747,1776092464273,-327.58,0.00014223,2]
[420419748,1776092464315,-4.75739124,0.00014227,2]
[420419749,1776092464638,-534.11521752,0.00014227,2]
[420419750,1776092464681,-3897.64217642,0.0001434,2]
[420419751,1776092464779,-1136.49521212,0.0001434,2]
[420419752,1776092464824,-347.93,0.00014511,2]
[420419753,1776092464869,-942.10468965,0.0001455,2]
[420419754,1776092464905,-1999.29171141,0.0001455,2]
[420419755,1776092464939,-500.0,0.00014552,2]
[420419756,1776092465068,-582.88,0.00014674,2]
[420419757,1776092465142,-211.34242037,0.000147,2]
[420419758,1776092465215,-362.85490329,0.000147,2]
[420419759,1776092465297,-419.98354925,0.000147,2]
[420419760,1776092465359,-514.36738621,0.000147,2]
[420419761,1776092465403,-500.0,0.00014712,2]
[420419762,1776092465452,-500.0,0.00014712,2]
[420419763,1776092465822,-2918.354,0.00014726,2]
[420419764,1776092465999,-4163.302,0.00014726,2]
[420419765,1776092466041,-281.921,0.00014726,2]
[420419766,1776092466084,-150.0,0.00014766,2]
[420419767,1776092466122,-309.564,0.00014766,2]